Cogmind - Beta 17 @@@ ROGUE MODE // 2026.07.01 @ 01:47:10 Player: Venar246 Result: Destroyed by Y-64 Sentinel with Wave Gun Performance ------------- Evolutions (3) 1500 Regions Visited (6) 1200 Robots Destroyed (75) 375 Value Destroyed (2683) 2683 Prototype IDs (8) 160 Alien Tech Used (0) 0 Bonus (233) 233 TOTAL SCORE: 6151 Bonus ------- Pacifist 200 High Alert Combat Kills 33 Cogmind --------- Core Integrity 0/700 Matter 99/300 Energy 46/100 System Corruption 5% Temperature Cool (65) Movement Core (450) Ox8 Location -7/Lower Caves Parts ------- > --- POWER (1) -------- (None) > --- PROPULSION (4) --- (None) > --- UTILITY (6) ------ Large Storage Unit Weapon Cycler > --- WEAPON (2) ------- Advanced Beam Rifle Katana > --- INVENTORY (15) --- Improved Cooling System Improved Melee Analysis Suite Recalibrator Peak State ------------ > --- POWER ------------ Improved Deuterium Engine > --- PROPULSION ------- Improved Titanium Leg Improved Titanium Leg Improved Titanium Leg Improved Titanium Leg > --- UTILITY ---------- Improved Cooling System Large Storage Unit Kinecellerator Reaction Control System Hardened Medium Armor Plating Shield Generator > --- WEAPON ----------- Enhanced Autogun Enhanced Autogun > --- INVENTORY -------- Light Nuclear Core Improved Cooling System Kinecellerator Weapon Cycler Weapon Cycler Hardened Medium Armor Plating Improved Light Armor Plating High-powered Tractor Beam Advanced Beam Rifle EM Pulse Cannon Enhanced Autogun Assault Cannon Flak Cannon Rocket Launcher Heavy Mace [Rating: 50] Favorites ----------- Power Light Nuclear Core Engine Ion Engine Power Core Light Nuclear Core Propulsion Aluminum Leg Leg Aluminum Leg Utility Large Storage Unit Device Weapon Cycler Storage Large Storage Unit Processor Advanced Targeting Computer Protection Hardened Medium Armor Plating Weapon Enhanced Autogun Energy Gun Gatling Laser Energy Cannon Light EM Pulse Cannon Ballistic Gun Enhanced Autogun Ballistic Cannon Assault Cannon Launcher Grenade Launcher Special Weapon Plasma Flamer Slashing Weapon Katana Build | -11 -10 -9 -9 -8 -7 -7 ------- Run | Yrd Mat Mat Min Mat Fac Low Slots Evolved 6 | . . 2 . 2 2 . Power . | . . . . . . . Propulsion 2 | . . 1 . 1 . . Utility 4 | . . 1 . 1 2 . Weapon . | . . . . . . . Parts Attached 69 | 7 1 8 2 15 31 5 Power 11 | 2 . 2 . 1 4 2 Engine 4 | 2 . 1 . . 1 . Core 7 | . . 1 . 1 3 2 Reactor . | . . . . . . . Propulsion 16 | 2 . 2 . 3 9 . Treads . | . . . . . . . Leg 16 | 2 . 2 . 3 9 . Wheel . | . . . . . . . Hover . | . . . . . . . Flight . | . . . . . . . Utility 21 | 1 1 1 . 5 12 1 Device 13 | . 1 . . 3 8 1 Storage 2 | 1 . . . 1 . . Processor 2 | . . 1 . . 1 . Hackware . | . . . . . . . Protection 4 | . . . . 1 3 . Artifact . | . . . . . . . Weapon 21 | 2 . 3 2 6 6 2 Energy Gun 3 | . . 1 . 1 1 . Energy Cannon 1 | . . . 1 . . . Ballistic Gun 11 | 2 . . . 4 3 2 Ballistic Cannon 1 | . . . . . 1 . Launcher 3 | . . 2 . 1 . . Special Weapon 1 | . . . 1 . . . Impact Weapon . | . . . . . . . Slashing Weapon 1 | . . . . . 1 . Piercing Weapon . | . . . . . . . Special Melee Weapon . | . . . . . . . Unidentified Prototypes 3 | . . . . 3 . . Parts Lost 38 | . . . . . 22 16 Power 5 | . . . . . 3 2 Propulsion 10 | . . . . . 6 4 Utility 13 | . . . . . 8 5 Weapon 10 | . . . . . 5 5 Highest Loss Streak 6 | . . . . . 4 6 To Critical Strikes . | . . . . . . . Average Backups 9 | 1 3 5 8 11 12 7 Power . | . 1 1 1 1 1 . Propulsion . | . . . 1 . . . Utility 3 | . . . 2 5 5 3 Weapon 4 | . 2 3 4 4 5 3 Tool/Special . | . . . . . . . Unused Backups 13 | . . . 1 3 6 3 Power 1 | . . . . . 1 . Propulsion 1 | . . . . . 1 . Utility 6 | . . . . 2 1 3 Weapon 5 | . . . 1 1 3 . Tool/Special . | . . . . . . . Average Slot Usage (%) 88 | . 91 93 100 98 90 66 Engine 3 | . 14 9 . . 1 . Core 5 | . . 1 11 9 5 6 Leg 26 | . 27 28 33 36 27 12 Device 15 | . 6 11 11 16 23 12 Storage 8 | . 14 11 11 9 7 7 Processor 4 | . . 8 11 6 2 6 Protection 3 | . . . . 3 5 2 Energy Gun 1 | . . 1 10 1 1 2 Ballistic Gun 14 | . 27 17 11 16 10 11 Peak Build Rating 50 | 6 7 12 17 32 50 39 Average Rating 25 | 5 6 9 12 24 38 27 On Entrance 15 | . 6 7 12 12 32 39 Avg Prop Armor Cover (%) 10 | . . . . . 10 . Naked Turns . | . . . . . . . Heaviest Build 53 | 13 14 16 15 42 53 43 Greatest Support 80 | 20 20 30 30 45 80 45 Greatest Overweight (x) 11 | 1 1 . . 1 2 11 Average Overweight (x) . | . . . . . . 1 Largest Inventory Capacity 15 | 8 8 8 8 15 15 15 Average Capacity 12 | 7 8 8 8 12 15 15 Most Carried 15 | 2 5 8 8 15 15 11 Average Carried 9 | 1 3 5 7 11 12 7 Final Capacity 15 | 8 8 8 8 15 15 15 Final Carried 15 | 2 5 8 8 15 11 3 Class Distribution -------------------- 70% | Mutant 28% | Scavenger-Mutant Dominant Class ---------------- Mutant | -10/Materials Mutant | -9/Materials Scavenger-Mutant | -9/Mines Mutant | -8/Materials Mutant | -7/Factory Mutant | -7/Lower Caves Resources | -11 -10 -9 -9 -8 -7 -7 ----------- Run | Yrd Mat Mat Min Mat Fac Low Matter Collected 2205 | 270 . 359 29 160 1328 59 Remotely 139 | . . . . . 139 . Salvage Created 2635 | . . 554 17 320 1495 249 Parts 157 | . . 36 1 23 80 17 Haulers Intercepted 2 | . . 1 . 1 . . Recyclers Shooed 4 | . . 3 . 1 . . Parts Field Recycled . | . . . . . . . Retrieved Matter . | . . . . . . . Parts Self-Destructed 19 | . . . . . . 19 Prevented . | . . . . . . . Parts Restored . | . . . . . . . Kills | -11 -10 -9 -9 -8 -7 -7 ------- Run | Yrd Mat Mat Min Mat Fac Low Combat Hostiles Destroyed 61 | . . 12 . 9 31 9 Melee 3 | . . . . . 2 1 Guns 42 | . . 6 . 4 24 8 Cannons 2 | . . . . . 2 . AOE 14 | . . 6 . 5 3 . Classes Destroyed 12 | . . 6 1 2 2 1 Builder 5 | . . . . 1 4 . Tunneler 1 | . . . 1 . . . Hauler 2 | . . 1 . 1 . . Recycler 2 | . . 2 . . . . Operator 1 | . . 1 . . . . Watcher 3 | . . 2 . 1 . . Swarmer 15 | . . 3 . 4 4 4 Grunt 28 | . . 9 . 3 14 2 Duelist 3 | . . . . . 1 2 Sentry 11 | . . . . 2 9 . Programmer 3 | . . . . . 3 . Behemoth 1 | . . . . . . 1 Best Kill Streak 10 | . . 10 1 7 8 5 Combat Bots Only 7 | . . 7 . 5 5 5 Max Kills in Single Turn 3 | . . 3 1 3 1 2 Gunslinging 1 | . . . . . . 1 Exploded 3 | . . 3 . 2 1 . Melee 1 | . . . . . 1 1 Uniques/NPCs Destroyed . | . . . . . . . Combat | -11 -10 -9 -9 -8 -7 -7 -------- Run | Yrd Mat Mat Min Mat Fac Low Hostile Shots Fired 708 | . . 28 . 23 534 123 Missed 259 | . . 6 . 7 208 38 Hits 449 | . . 22 . 16 326 85 Melee 12 | . . . . . 9 3 Projectile 437 | . . 22 . 16 317 82 Critical Strikes 4 | . . . . . 4 . Damage Taken 5598 | . . 278 . 303 3588 1429 Core 756 | . . 51 . . 327 378 Absorbed by Shields 203 | . . . . . 203 . Core Remaining (%) 96 | 100 100 . 87 100 . . Volleys Fired 244 | . 3 48 3 20 142 28 Largest 2 | . 2 2 1 2 2 2 Hottest 108 | . 40 60 100 56 94 108 Shots Fired 396 | . 6 80 3 38 220 49 Gun 347 | . 6 73 . 36 188 44 Cannon 31 | . . . . . 26 5 Launcher 15 | . . 7 . 2 6 . Special 3 | . . . 3 . . . Kinetic 349 | . 6 64 . 36 202 41 Thermal 32 | . . 9 3 . 12 8 Explosive 15 | . . 7 . 2 6 . Electromagnetic . | . . . . . . . Robot Hit Streak 19 | . 1 7 . 9 19 13 Robot Miss Streak 8 | . 5 3 . 2 6 8 Penetration Max . | . . . . . . . Secondary Targets 6 | . . 2 . . 3 1 Max Gunslinging Chain 1 | . . 1 . . 1 1 Shots Hit Robots 284 | . 1 49 . 28 162 44 Core Hits 193 | . 1 30 1 20 88 53 Critical Kills 3 | . . 1 . . 2 . Critical Parts Destroyed 2 | . . 1 . . 1 . Critical Strikes 8 | . . 2 . . 6 . Burn 1 | . . . . . 1 . Destroy 5 | . . 2 . . 3 . Blast 2 | . . . . . 2 . Melee Attacks 17 | . . . . . 16 1 Impact . | . . . . . . . Slashing 17 | . . . . . 16 1 Piercing . | . . . . . . . Sneak Attacks . | . . . . . . . Combat Hostiles . | . . . . . . . Follow-up Attacks . | . . . . . . . Damage Inflicted 6718 | . 18 966 18 877 3822 1017 Guns 4319 | . 7 522 . 406 2481 903 Cannons 642 | . . . . . 552 90 Explosions 1408 | . . 434 . 440 534 . Melee 259 | . . . . . 235 24 Ramming 90 | . 11 10 18 31 20 . Kinetic 4613 | . 7 448 . 406 2873 879 Thermal 615 | . . 74 . 267 160 114 Explosive 1141 | . . 434 . 173 534 . Electromagnetic . | . . . . . . . Impact . | . . . . . . . Slashing 259 | . . . . . 235 24 Piercing . | . . . . . . . Highest Corruption 5 | . . . . . 5 5 Average Corruption 4 | . . . . . 4 5 Corruption Purged . | . . . . . . . Corruption Blocked . | . . . . . . . Effects 40 | . . . . . 18 22 Message Errors 13 | . . . . . 6 7 Matter Fused 7 | . . . . . 2 5 Heat Flow Errors 6 | . . . . . 4 2 Energy Discharges 4 | . . . . . 2 2 Parts Fused 1 | . . . . . . 1 Data Loss (minor) 4 | . . . . . 1 3 Data Loss (major) 1 | . . . . . . 1 Weapon Failures 4 | . . . . . 3 1 Overload Shots . | . . . . . . . Overflow Damage 120 | . . . . 81 39 . Projectiles 39 | . . . . . 39 . Explosions 81 | . . . . 81 . . Melee . | . . . . . . . Knockbacks 8 | . . 1 . . 6 1 Impact 1 | . . 1 . . . . Kinetic 7 | . . . . . 6 1 Secondary . | . . . . . . . Self-Inflicted Damage 341 | . . . . 88 253 . Shots 7 | . . . . 2 5 . Rammed . | . . . . . . . Targets Rammed 18 | . 2 2 4 2 8 . Kicked 18 | . 2 2 4 2 8 . Crushed . | . . . . . . . Highest Temperature 204 | . . 46 153 . 139 204 Average Temperature 39 | . . 16 82 . 22 63 Received Heat Transfer 1600 | . . 162 . 108 1063 267 Siege Activations . | . . . . . . . Martial Activations . | . . . . . . . Shielding Activations . | . . . . . . . Robots Disrupted . | . . . . . . . Combat Hostiles . | . . . . . . . Robots Corrupted . | . . . . . . . Combat Hostiles . | . . . . . . . Parts Fried . | . . . . . . . Impact Corruptions . | . . . . . . . Robots Melted . | . . . . . . . Combat Hostiles . | . . . . . . . Parts Melted 2 | . . . . 1 1 . Heat Transferred 944 | . . 175 . 150 370 249 Parts Sabotaged . | . . . . . . . Parts Stolen . | . . . . . . . Parts Stripped . | . . . . . . . Power Chain Reactions . | . . . . . . . Alert | -11 -10 -9 -9 -8 -7 -7 ------- Run | Yrd Mat Mat Min Mat Fac Low Maximum Alert Level 2 | . . 1 . 1 2 . Low Security (%) 69 | 100 100 67 100 72 51 . Level 1 28 | . . 32 . 27 42 . Level 2 2 | . . . . . 5 . Level 3 . | . . . . . . . Level 4 . | . . . . . . . Level 5 . | . . . . . . . High Security . | . . . . . . . Max Security . | . . . . . . . Peak Influence 448 | . . 261 94 237 448 . Initial 94 | . . . 94 . 79 . Average 129 | . . 145 39 105 197 . Influence Increases 2051 | . 10 410 5 353 1073 200 Destroy 0b10 Robot/C 1220 | . . 240 . 180 620 180 Destroy 0b10 Robot/NC 70 | . . 30 5 15 20 . Destroy Leader 300 | . . 46 . 44 190 20 Successful Hack 39 | . 10 2 . 20 7 . Disable Machine 105 | . . 30 . 45 30 . Destroy Structure 152 | . . 47 . 49 56 . Lose Combat Pursuer 165 | . . 15 . . 150 . Influence Decreases 2009 | . 10 166 249 178 895 511 Entered New Map 377 | . . . 150 . 96 131 Time Decay 1112 | . 10 166 99 178 429 230 Lost Part 370 | . . . . . 220 150 Purge Threat 150 | . . . . . 150 . Squads Dispatched 13 | . 1 1 . 1 10 . Investigation 1 | . . . . . 1 . Extermination 2 | . . . . . 2 . Reinforcement 6 | . 1 1 . 1 3 . Assault . | . . . . . . . Garrison 4 | . . . . . 4 . Intercept . | . . . . . . . Searches Triggered . | . . . . . . . Construction Impeded 2 | . . . . . 2 . Haulers Reinforced . | . . . . . . . Active Scanning Responses . | . . . . . . . Cargo Convoy Interrupts 1 | . . . . . 1 . Stealth | -11 -10 -9 -9 -8 -7 -7 --------- Run | Yrd Mat Mat Min Mat Fac Low Distress Signals 9 | . . 3 . 3 3 . Communications Jammed . | . . . . . . . Distress Signals . | . . . . . . . Times Spotted 91 | . 5 19 . 17 38 12 Peak Tracking Total 8 | . 1 6 . 8 7 7 Tactical Retreats 9 | . . 1 . . 8 . Traps | -11 -10 -9 -9 -8 -7 -7 ------- Run | Yrd Mat Mat Min Mat Fac Low Traps Triggered 1 | . 1 . . . . . Indirectly . | . . . . . . . Trap Hack Attempts . | . . . . . . . Triggered . | . . . . . . . Disarmed . | . . . . . . . Reprogrammed . | . . . . . . . Reused . | . . . . . . . Traps Extracted . | . . . . . . . Installed . | . . . . . . . Triggered . | . . . . . . . Machines | -11 -10 -9 -9 -8 -7 -7 ---------- Run | Yrd Mat Mat Min Mat Fac Low Machines Disabled 7 | . . 2 . 3 2 . Max in Single Turn 3 | . . 1 . 3 2 . Machines Repaired . | . . . . . . . Machines Dismantled . | . . . . . . . Machines Sabotaged . | . . . . . . . Overloaded Fab Kills . | . . . . . . . Hacking | -11 -10 -9 -9 -8 -7 -7 --------- Run | Yrd Mat Mat Min Mat Fac Low Machines Accessed 15 | . 5 2 . 2 6 . Terminals 10 | . 3 1 . 2 4 . Fabricators 1 | . . . . . 1 . Repair Stations 1 | . 1 . . . . . Recycling Units 1 | . 1 . . . . . Scanalyzers 1 | . . 1 . . . . Garrison Access 1 | . . . . . 1 . Total Hacks 45 | . 17 7 . 5 16 . Successful 16 | . 5 4 . 2 5 . Failed 28 | . 12 2 . 3 11 . Catastrophic 4 | . . . . 2 2 . Database Lockouts 1 | . . 1 . . . . Manual 12 | . 1 . . 5 6 . Terminals 29 | . 10 2 . 5 12 . Fabricators 3 | . . . . . 3 . Repair Stations 2 | . 2 . . . . . Recycling Units 5 | . 5 . . . . . Scanalyzers 5 | . . 5 . . . . Garrison Access 1 | . . . . . 1 . Terminal Hacks 9 | . 2 . . 2 5 . Record 1 | . . . . . 1 . Robot Analysis 1 | . . . . . 1 . Prototype ID Bank 2 | . . . . 2 . . Alert Level 1 | . . . . . 1 . Unreport Threat 1 | . . . . . 1 . Hauler Manifests 1 | . 1 . . . . . Registered Components 1 | . . . . . 1 . Zone Layout 1 | . 1 . . . . . Fabricator Hacks . | . . . . . . . Repair Station Hacks . | . . . . . . . Recycling Unit Hacks 3 | . 3 . . . . . Report Inventory 1 | . 1 . . . . . Retrieve Matter 1 | . 1 . . . . . Retrieve Components 1 | . 1 . . . . . Scanalyzer 4 | . . 4 . . . . Retrieve Study 4 | . . 4 . . . . Garrison Access Hacks . | . . . . . . . Unauthorized Hacks . | . . . . . . . Terminals . | . . . . . . . Fabricators . | . . . . . . . Repair Stations . | . . . . . . . Recycling Units . | . . . . . . . Scanalyzers . | . . . . . . . Garrison Access . | . . . . . . . Data Cores Recovered . | . . . . . . . Used . | . . . . . . . Hacking Detections 14 | . 5 1 . 2 6 . Full Trace Events 1 | . 1 . . . . . Feedback Events . | . . . . . . . Feedback Blocked . | . . . . . . . Robot Schematics Acquired . | . . . . . . . Robots Built . | . . . . . . . Authchips . | . . . . . . . Time . | . . . . . . . Total Robot Build Rating . | . . . . . . . Part Schematics Acquired . | . . . . . . . Parts Built . | . . . . . . . Authchips . | . . . . . . . Time . | . . . . . . . Total Part Build Rating . | . . . . . . . Part Studies Acquired 4 | . . 4 . . . . Parts Repaired . | . . . . . . . Time . | . . . . . . . Parts Recycled . | . . . . . . . Recycled Matter . | . . . . . . . Retrieved Matter . | . . . . . . . Retrieved Components . | . . . . . . . Parts Scanalyzed . | . . . . . . . Part Schematics Acquired . | . . . . . . . Parts Damaged . | . . . . . . . Bothacking | -11 -10 -9 -9 -8 -7 -7 ------------ Run | Yrd Mat Mat Min Mat Fac Low Used RIF Installer . | . . . . . . . Robots Hacked . | . . . . . . . Non-combat . | . . . . . . . Combat . | . . . . . . . Robot Hacks Applied . | . . . . . . . Relay Couplers Released . | . . . . . . . Fabnet Peak Effective % . | . . . . . . . Robots Rewired . | . . . . . . . Allies Hacked . | . . . . . . . Hacks Repelled . | . . . . . . . Allies | -11 -10 -9 -9 -8 -7 -7 -------- Run | Yrd Mat Mat Min Mat Fac Low Total Allies . | . . . . . . . Largest Group . | . . . . . . . Highest-Rated Group . | . . . . . . . Highest-Rated Ally . | . . . . . . . Total Orders . | . . . . . . . Ally Attacks . | . . . . . . . Total Damage . | . . . . . . . Kills . | . . . . . . . Allies Corrupted . | . . . . . . . Allies Melted . | . . . . . . . Intel | -11 -10 -9 -9 -8 -7 -7 ------- Run | Yrd Mat Mat Min Mat Fac Low Active Infowar (turns) 1276 | . 225 456 248 347 . . Seismic 1276 | . 225 456 248 347 . . Robot Analysis Total 1 | . . . . . 1 . Derelict Logs Recovered . | . . . . . . . Drone Launches . | . . . . . . . Drone Recoveries . | . . . . . . . Exploration | -11 -10 -9 -9 -8 -7 -7 ------------- Run | Yrd Mat Mat Min Mat Fac Low Turns Passed 4019 | 68 461 456 248 617 1430 739 Spaces Moved 2260 | 48 336 267 218 434 634 323 Core 4 | 3 . . . . . 1 Treads . | . . . . . . . Legs 2256 | 45 336 267 218 434 634 322 Wheels . | . . . . . . . Hover . | . . . . . . . Flight . | . . . . . . . Fastest Speed 50 | 50 120 105 105 105 108 108 Average Speed 137 | 118 120 107 105 116 152 202 Slowest Speed 600 | 190 190 120 105 175 270 600 Overloaded Moves . | . . . . . . . Propulsion Burnouts . | . . . . . . . Robots Hopped . | . . . . . . . Potential Cave-ins . | . . . . . . . Cave-ins Triggered . | . . . . . . . Exploration Rate (%) 29 | 3 46 28 34 38 13 46 Regions Visited 6 Branch Regions 2 Pre-discovered Areas . | . . . . . . . Known Exits Taken . | . . . . . . . Unknown Exits Taken 6 | 1 1 1 1 1 1 . Scrap Searched 1 | . . . 1 . . . Spaces Dug 22 | . . 13 . . 9 . Terrain Destroyed 160 | . . 49 . 46 65 . Melee 9 | . . . . . 9 . Projectile 1 | . . . . . 1 . AOE 150 | . . 49 . 46 55 . Terrain Rammed . | . . . . . . . Walls Destroyed . | . . . . . . . Machines Disabled . | . . . . . . . Actions | -11 -10 -9 -9 -8 -7 -7 --------- Run | Yrd Mat Mat Min Mat Fac Low Total 2827 | 55 384 360 232 511 918 367 Wait 103 | . 37 23 . 3 35 5 Move 2254 | 47 335 266 217 433 633 323 Hop . | . . . . . . . Pick Up 51 | 1 3 4 2 17 24 . Fast Attach 22 | 6 4 2 . 5 5 . Attach 35 | . . 2 . 2 24 7 Detach 3 | . . 1 . . 2 . Swap 40 | 1 . 8 4 11 14 2 Drop 40 | . . 4 2 18 15 1 Fire 244 | . 3 48 3 20 142 28 Melee 17 | . . . . . 16 1 Ram . | . . . . . . . Kick 18 | . 2 2 4 2 8 . Crush . | . . . . . . . Escape Stasis . | . . . . . . . Rewire . | . . . . . . . Trap . | . . . . . . . Miscellaneous . | . . . . . . . Route ------- -11/Scrapyard -10/Materials (discovered 2 exits: *Mat / [*Min]) -9/Materials -9/Mines -8/Materials -7/Factory (discovered 2 exits: [*Fac] / [*Low]) -7/Lower Caves History --------- Turn | Location | Event 23 | -11/Scrapyard | Discovered new exit (range 13) 69 | -11/Scrapyard | Entered Materials 178 | -10/Materials | Discovered new exit (range 11) 326 | -10/Materials | Build established: Mutant 453 | -10/Materials | Discovered new exit (range 4) 530 | -10/Materials | Entered another Materials area 530 | -9/Materials | Evolved 2 slots: Propulsion x1, Utility x1 603 | -9/Materials | Central database locked down 694 | -9/Materials | Destroyed 7 combat bots 940 | -9/Materials | Discovered new exit (range 16) 986 | -9/Materials | Entered Mines 993 | -9/Mines | Received a Rocket Launcher from a helpful Derelict 1027 | -9/Mines | A weapon hastily lodged in a ceiling crevice suddenly fell to the ground 1217 | -9/Mines | Discovered new exit (range 9) 1234 | -9/Mines | Entered Materials 1234 | -8/Materials | Evolved 2 slots: Propulsion x1, Utility x1 1434 | -8/Materials | Build established: Scavenger-Mutant 1772 | -8/Materials | Build established: Mutant 1833 | -8/Materials | Discovered new exit (range 5) 1851 | -8/Materials | Entered Factory 1851 | -7/Factory | Evolved 2 slots: Utility x2 2359 | -7/Factory | Lost 3 parts (1p2u) 2446 | -7/Factory | Discovered new exit (range 12) 2574 | -7/Factory | Garrison activated, responded to threat 2625 | -7/Factory | Lost 3 parts (1p1n1u) 2682 | -7/Factory | Lost 3 parts (1u2w) 2746 | -7/Factory | Lost 3 parts (1n2u) 2883 | -7/Factory | Lost 3 parts (2n1w) 2959 | -7/Factory | Garrison activated, responded to threat 3049 | -7/Factory | Lost 4 parts (1p1n1u1w) 3080 | -7/Factory | Cargo convoy interrupted 3262 | -7/Factory | Discovered new exit (range 9) 3281 | -7/Factory | Entered Lower Caves 3340 | -7/Lower Caves | Build established: Scavenger-Mutant 3475 | -7/Lower Caves | Spotted B-75 Beast 3483 | -7/Lower Caves | Lost 4 parts (2n2u) 3587 | -7/Lower Caves | Core integrity fell below 50% 3608 | -7/Lower Caves | Destroyed B-75 Beast 3634 | -7/Lower Caves | Lost 6 parts (1p1n2u2w) 3827 | -7/Lower Caves | Build established: Mutant 3978 | -7/Lower Caves | Attracted the attention of an 0b10 outpost 4010 | -7/Lower Caves | Core integrity fell below 20% 4020 | -7/Lower Caves | Destroyed by Y-64 Sentinel with Wave Gun Last Messages --------------- 04007_ Assault Cannon destroyed. 04009_ Penetrated by Slug. 04010_ System corrupted: Matter fused (-7). 04010_ Particle Gun fries itself beyond repair. 04010_ Flak Gun destroyed. 04011_ Aluminum Leg+ fries itself beyond repair. 04012_ Penetrated by Slug. 04012_ L-41 Fighter destroyed. 04014_ Lgt. Nuclear Core fries itself beyond repair. 04015_ Carbon-fiber Leg fries itself beyond repair. 04015_ Imp. Heat Sink fries itself beyond repair. 04017_ Aluminum Leg+ fries itself beyond repair. 04017_ Lgt. Nuclear Core fries itself beyond repair. 04017_ Slug penetrates Wall. 04018_ Particle Gun fries itself beyond repair. 04018_ G-47 Trooper destroyed. Map ----- +----------------------------------------------------+ | ?????????????????????????????????????????????????? | | ?????????????????????????????????????????????????? | | ?????????????????????????????????????????????##### | | ?????????????????????????????????????????????#"""" | | ?????????????????????????????????????????????#"""" | | ?????????????????????????????????????????????#"""" | | ??????????????????????????????????????????????# | | ???????????????????????????????????????????#### | | ????????????????????????????????????###???## | | ????????????????????????????????????# ##??# | | ????????????????????????????????##### #### | | ??????????????????????#####?????# # ### | | ?????????????????????## #????## # | | ???????????????????### #???## #^ # | | ??????????????????## ##???# ### #### # | | ??????????????????# ###????# # ## #??## ## | | ??????????????????# #??????#### #^ ########? | | ??????????????????## ####?????# # # #???? | | ???????????????????# ##????# # ## #???? | | ???????????????????# ##???#### #### #???# | | ???????????????????# ##???## ##??# #?? | | ???????????????????## ##### ##???# #?# | | ????????????????????### ## ##????# #?### | | ???????????????????###; ##????## ##??? | | ??????????????????## #????## ##?? | | ??????????????????# @ ####### ### | | ??????????????????# % ### | | ??????????????????#### % ##" | | ?????????????????????## % ###### # | | ??????????????????????## % %###"# # | | ???????????????????????## Y!% | | ????????????????????????# | | ????????????????????????# ## | | ????????????????????????### "# | | ??????????????????????????# ####" """ | | ??????????????????????????# # "# %" " | | ??????????????????????????# # # / $"# " "" | | ?????????????????????????? # #### ??# # ### # | | ??????????????????????????? #?#? ???#%####?# ## | | ???????????????????????????? ??" ????# #????# ## | | ??????????????????????????????????????# #????# ## | | ??????????????????????????????????????# #????# ## | | ?????????????????????????????????????? #????" #? | | ??????????????????????????????????????###????# #? | | ?????????????????????????????????????????????# "? | | ?????????????????????????????????????????????# #? | | ?????????????????????????????????????????????# ## | | ?????????????????????????????????????????????# | | ????????????????????????????????????????????# | | ????????????????????????????????????????????## | +----------------------------------------------------+ Best States ------------- Heat Dissipation 61 Energy Generation 16 Energy Capacity 290 Matter Stores 300 Matter Capacity 300 Sight Range 16 Terrain Scan Density 10 Armor Coverage 375 Weapon Cycling 30 Evasion (%) 63 Targeting Accuracy 8 Matter Filtering 30 Kinecelleration 30 Item Schematics ----------------- None Robot Schematics ------------------ None Fabricated ------------ Nothing Repaired ---------- Nothing Studied --------- Aluminum Leg | -9/Materials | Hacked Grenade Launcher | -9/Materials | Hacked Assault Rifle | -9/Materials | Hacked Ion Engine | -9/Materials | Hacked Alien Tech Used ----------------- None Achievements -------------- None Challenges ------------ None Game ------ Seed SwordCoordinationTurbovents Manual? 0 Play Time 00:40:05 Cumulative 44.8 hours Start 2026.07.01 @ 00:45:29 End 2026.07.01 @ 01:47:10 Sessions 1 Manual Loads 0 Difficulty Rogue Special Mode None Game No. 87 Rogue 87 Adventurer 0 Explorer 0 Win Type - Total 1 Types 1/0/0/0/0/0/0/0/0/0 Lore% 25 Gallery% 32 Achievement% 23 Wizard Run 0 Options --------- Layout 1 ASCII 0 Keyboard 0 Movement Arrows Keybinds 0 Fullscreen 1 Font 32/SmallcapsGlow Map View 50x35 Zoom Use 0% Tactical HUD 1 Map Filters NONE Filters NONE Steam 1 RUN: 5a72c715-3c54-492b-924e-e0a9edcad19e